Cogmind - Beta 9.2 @@@ ROGUE MODE // 2019.11.14 @ 17:10:28 Player: adeno Result: Self-destructed Performance ------------- Evolutions (1) 500 Regions Visited (3) 600 Robots Destroyed (15) 75 Value Destroyed (176) 176 Prototype IDs (2) 40 Alien Tech Used (0) 0 Bonus (0) 0 TOTAL SCORE: 1391 Bonus ------- None Cogmind --------- Core Integrity 218/400 Matter 168/300 Energy 80/125 System Corruption 0% Temperature Cool (81) Movement Rolling (100) Location -9/Materials Parts ------- > --- POWER (1) -------- Light Ion Engine > --- PROPULSION (2) --- Wheel Compact Wheel > --- UTILITY (4) ------ Small Storage Unit Sensor Array Signal Interpreter > --- WEAPON (2) ------- Light EM Pulse Cannon Improved Light Cannon > --- INVENTORY (6) ---- Improved Ion Engine Wheel Signal Interpreter Assault Rifle Light Assault Rifle Peak State ------------ > --- POWER ------------ Light Ion Engine > --- PROPULSION ------- Wheel Compact Wheel > --- UTILITY ---------- Small Storage Unit Sensor Array Signal Interpreter > --- WEAPON ----------- Light EM Pulse Cannon Improved Light Cannon > --- INVENTORY -------- Signal Interpreter Assault Rifle Light Assault Rifle [Rating: 10] Favorites ----------- Power Light Ion Engine Engine Light Ion Engine Propulsion Compact Wheel Wheel Compact Wheel Utility Small Storage Unit Device Sensor Array Storage Small Storage Unit Processor Signal Interpreter Weapon Light Assault Rifle Energy Gun Medium Laser Energy Cannon Light EM Pulse Cannon Ballistic Gun Light Assault Rifle Ballistic Cannon Improved Light Cannon Launcher Grenade Launcher Build | -11 -10 -10 -9 ------- Run | Scr Mat Min Mat Slots Evolved 2 | . . . 2 Power . | . . . . Propulsion . | . . . . Utility 2 | . . . 2 Weapon . | . . . . Parts Attached 18 | 7 2 . 9 Power 2 | 1 . . 1 Engine 2 | 1 . . 1 Core . | . . . . Reactor . | . . . . Propulsion 5 | 2 . . 3 Treads . | . . . . Leg . | . . . . Wheel 5 | 2 . . 3 Hover . | . . . . Flight . | . . . . Utility 4 | 2 1 . 1 Device 2 | 1 . . 1 Storage 1 | 1 . . . Processor 1 | . 1 . . Hackware . | . . . . Protection . | . . . . Artifact . | . . . . Weapon 7 | 2 1 . 4 Energy Gun 1 | 1 . . . Energy Cannon 1 | . . . 1 Ballistic Gun 3 | 1 . . 2 Ballistic Cannon 1 | . . . 1 Launcher 1 | . 1 . . Special Weapon . | . . . . Impact Weapon . | . . . . Slashing Weapon . | . . . . Piercing Weapon . | . . . . Special Melee Weapon . | . . . . Unidentified Prototypes . | . . . . Parts Lost 6 | . . 1 5 Power 1 | . . . 1 Propulsion 3 | . . . 3 Utility . | . . . . Weapon 2 | . . 1 1 Highest Loss Streak 3 | . . 1 3 Average Slot Usage (%) 84 | . 100 92 78 Engine 11 | . 14 14 10 Wheel 19 | . 28 28 15 Device 8 | . 2 . 11 Storage 11 | . 14 14 11 Processor 11 | . 11 14 11 Energy Gun 4 | . 14 7 . Energy Cannon 1 | . . . 2 Ballistic Gun 11 | . 10 . 12 Ballistic Cannon 1 | . . . 2 Launcher 3 | . 3 14 2 Naked Turns . | . . . . Heaviest Build 16 | 11 12 12 16 Greatest Support 32 | 32 32 32 32 Greatest Overweight (x) . | . . . . Average Overweight (x) . | . . . . Largest Inventory Capacity 6 | 6 6 6 6 Average Capacity 5 | 5 6 6 6 Most Carried 6 | 2 6 6 5 Average Carried 3 | 1 5 6 3 Final Capacity 6 | 6 6 6 6 Final Carried 6 | 2 6 6 5 Class Distribution -------------------- 100% | Mutant Dominant Class ---------------- Mutant | -10/Materials Mutant | -10/Mines Mutant | -9/Materials Resources | -11 -10 -10 -9 ----------- Run | Scr Mat Min Mat Matter Collected 365 | 230 50 . 85 Remotely . | . . . . Salvage Created 206 | 24 3 . 179 Parts 27 | 2 7 . 18 Haulers Intercepted . | . . . . Recyclers Shooed 1 | . . . 1 Parts Field Recycled . | . . . . Retrieved Matter . | . . . . Parts Self-Destructed . | . . . . Prevented . | . . . . Kills | -11 -10 -10 -9 ------- Run | Scr Mat Min Mat Combat Hostiles Destroyed 10 | . 3 . 7 Guns 1 | . . . 1 Cannons 2 | . . . 2 AOE 7 | . 3 . 4 Classes Destroyed 5 | 1 1 . 3 Worker 3 | . . . 3 Tunneler 2 | 1 . . 1 Swarmer 8 | . 3 . 5 Grunt 1 | . . . 1 Sentry 1 | . . . 1 Best Kill Streak 4 | 1 3 . 4 Combat Bots Only 4 | . 3 . 4 Max Kills in Single Turn 2 | 1 2 . 2 Gunslinging . | . . . . Exploded 2 | . 2 . 2 Melee . | . . . . Uniques/NPCs Destroyed . | . . . . Combat | -11 -10 -10 -9 -------- Run | Scr Mat Min Mat Damage Taken 786 | . 46 135 605 Core 204 | . 6 16 182 Absorbed by Shields . | . . . . Core Remaining (%) 95 | 100 . 91 . Volleys Fired 34 | 4 2 . 28 Largest 2 | 2 1 . 2 Hottest 95 | 70 30 . 95 Shots Fired 53 | 7 2 . 44 Gun 27 | 7 . . 20 Cannon 22 | . . . 22 Launcher 4 | . 2 . 2 Special . | . . . . Kinetic 39 | 3 . . 36 Thermal 4 | 4 . . . Explosive 4 | . 2 . 2 Electromagnetic 6 | . . . 6 Robot Hit Streak 6 | 2 . . 6 Robot Miss Streak 4 | 1 . . 4 Penetration Max . | . . . . Secondary Targets . | . . . . Shots Hit Robots 26 | 4 . . 22 Core Hits 17 | 2 3 . 12 Critical Hits 1 | . . . 1 Critical Kills . | . . . . Critical Parts Destroyed 1 | . . . 1 Melee Attacks . | . . . . Impact . | . . . . Slashing . | . . . . Piercing . | . . . . Sneak Attacks . | . . . . Combat Hostiles . | . . . . Follow-up Attacks . | . . . . Damage Inflicted 806 | 39 205 . 562 Guns 124 | 39 . . 85 Cannons 306 | . . . 306 Explosions 376 | . 205 . 171 Melee . | . . . . Ramming . | . . . . Kinetic 309 | 14 . . 295 Thermal 25 | 25 . . . Explosive 376 | . 205 . 171 Electromagnetic 96 | . . . 96 Impact . | . . . . Slashing . | . . . . Piercing . | . . . . Highest Corruption . | . . . . Average Corruption . | . . . . Corruption Purged . | . . . . Overload Shots . | . . . . Overflow Damage 4 | . 4 . . Projectiles . | . . . . Explosions 4 | . 4 . . Melee . | . . . . Knockbacks 1 | . . . 1 Impact . | . . . . Kinetic 1 | . . . 1 Secondary . | . . . . Self-Inflicted Damage 31 | . . . 31 Shots 1 | . . . 1 Rammed . | . . . . Targets Rammed . | . . . . Kicked . | . . . . Crushed . | . . . . Highest Temperature 81 | 70 . . 81 Average Temperature 31 | 35 . . 29 Received Heat Transfer 249 | . . 81 168 Siege Activations . | . . . . Robots Corrupted . | . . . . Combat Hostiles . | . . . . Parts Fried . | . . . . Impact Corruptions . | . . . . Robots Melted . | . . . . Combat Hostiles . | . . . . Parts Melted . | . . . . Heat Transferred 74 | 74 . . . Parts Sabotaged . | . . . . Parts Stolen . | . . . . Parts Stripped . | . . . . Power Chain Reactions . | . . . . Missiles Intercepted . | . . . . Alert | -11 -10 -10 -9 ------- Run | Scr Mat Min Mat Peak Influence 189 | 5 133 51 189 Average Influence 66 | . 58 46 84 Maximum Alert Level . | . . . . Low Security (%) 100 | 100 100 100 100 Level 1 . | . . . . Level 2 . | . . . . Level 3 . | . . . . Level 4 . | . . . . Level 5 . | . . . . High Security . | . . . . Max Security . | . . . . Squads Dispatched 1 | . 1 . . Investigation . | . . . . Extermination . | . . . . Reinforcement 1 | . 1 . . Assault . | . . . . Garrison . | . . . . Intercept . | . . . . Construction Impeded . | . . . . Haulers Reinforced . | . . . . Stealth | -11 -10 -10 -9 --------- Run | Scr Mat Min Mat Distress Signals 2 | . 1 . 1 Communications Jammed . | . . . . Distress Signals . | . . . . Times Spotted 24 | . 7 4 13 Peak Tracking Total 7 | . 6 4 7 Tactical Retreats 2 | . . . 2 Traps | -11 -10 -10 -9 ------- Run | Scr Mat Min Mat Traps Triggered . | . . . . Indirectly . | . . . . Trap Hack Attempts . | . . . . Triggered . | . . . . Disarmed . | . . . . Reprogrammed . | . . . . Reused . | . . . . Traps Extracted . | . . . . Installed . | . . . . Triggered . | . . . . Machines | -11 -10 -10 -9 ---------- Run | Scr Mat Min Mat Machines Disabled . | . . . . Max in Single Turn . | . . . . Machines Sabotaged . | . . . . Garrisons Compromised . | . . . . Overloaded Fab Kills . | . . . . Fab Network Shutdowns . | . . . . Hacking | -11 -10 -10 -9 --------- Run | Scr Mat Min Mat Machines Accessed 1 | . . . 1 Terminals 1 | . . . 1 Fabricators . | . . . . Repair Stations . | . . . . Recycling Units . | . . . . Scanalyzers . | . . . . Garrison Access . | . . . . Total Hacks 4 | . . . 4 Successful 3 | . . . 3 Failed 1 | . . . 1 Catastrophic . | . . . . Database Lockouts . | . . . . Manual . | . . . . Terminals 4 | . . . 4 Fabricators . | . . . . Repair Stations . | . . . . Recycling Units . | . . . . Scanalyzers . | . . . . Garrison Access . | . . . . Terminal Hacks 3 | . . . 3 Prototype ID Bank 1 | . . . 1 Locate Traps 1 | . . . 1 Zone Layout 1 | . . . 1 Fabricator Hacks . | . . . . Repair Station Hacks . | . . . . Recycling Unit Hacks . | . . . . Scanalyzer . | . . . . Garrison Access Hacks . | . . . . Unauthorized Hacks . | . . . . Terminals . | . . . . Fabricators . | . . . . Repair Stations . | . . . . Recycling Units . | . . . . Scanalyzers . | . . . . Garrison Access . | . . . . Data Cores Recovered . | . . . . Used . | . . . . Hacking Detections 1 | . . . 1 Full Trace Events . | . . . . Feedback Events . | . . . . Feedback Blocked . | . . . . Robot Schematics Acquired . | . . . . Robots Built . | . . . . Matter . | . . . . Time . | . . . . Total Robot Build Rating . | . . . . Part Schematics Acquired . | . . . . Parts Built . | . . . . Matter . | . . . . Time . | . . . . Total Part Build Rating . | . . . . Parts Repaired . | . . . . Time . | . . . . Parts Recycled . | . . . . Recycled Matter . | . . . . Retrieved Matter . | . . . . Retrieved Components . | . . . . Parts Scanalyzed . | . . . . Part Schematics Acquired . | . . . . Parts Damaged . | . . . . Bothacking | -11 -10 -10 -9 ------------ Run | Scr Mat Min Mat Used RIF Installer . | . . . . Robots Hacked . | . . . . Non-combat . | . . . . Combat . | . . . . Robot Hacks Applied . | . . . . Relay Couplers Released . | . . . . Robots Rewired . | . . . . Allies Hacked . | . . . . Hacks Repelled . | . . . . Allies | -11 -10 -10 -9 -------- Run | Scr Mat Min Mat Total Allies . | . . . . Largest Group . | . . . . Highest-Rated Group . | . . . . Highest-Rated Ally . | . . . . Total Orders . | . . . . Ally Attacks . | . . . . Total Damage . | . . . . Kills . | . . . . Allies Corrupted . | . . . . Allies Melted . | . . . . Intel | -11 -10 -10 -9 ------- Run | Scr Mat Min Mat Robot Analysis Total . | . . . . Derelict Logs Recovered . | . . . . Drone Launches . | . . . . Drone Recoveries . | . . . . Exploration | -11 -10 -10 -9 ------------- Run | Scr Mat Min Mat Turns Passed 518 | 68 119 16 315 Spaces Moved 381 | 47 105 17 212 Core 8 | 8 . . . Treads . | . . . . Legs . | . . . . Wheels 373 | 39 105 17 212 Hover . | . . . . Flight . | . . . . Fastest Speed 50 | 50 100 100 90 Average Speed 97 | 91 100 100 98 Slowest Speed 100 | 100 100 100 100 Overloaded Moves . | . . . . Propulsion Burnouts . | . . . . Robots Hopped . | . . . . Cave-ins Triggered . | . . . . Exploration Rate (%) 15 | 4 30 8 21 Regions Visited 3 Branch Regions 1 Pre-discovered Areas . | . . . . Known Exits Taken 2 | . 1 1 . Unknown Exits Taken 1 | 1 . . . Scrap Searched . | . . . . Spaces Dug . | . . . . Terrain Destroyed 35 | . 16 . 19 Melee . | . . . . Projectile 1 | . . . 1 AOE 34 | . 16 . 18 Actions | -11 -10 -10 -9 --------- Run | Scr Mat Min Mat Total 470 | 62 117 16 275 Wait 24 | 3 . . 21 Move 378 | 46 104 16 212 Hop . | . . . . Pick Up 13 | 2 6 . 5 Fast Attach 8 | 7 . . 1 Attach 7 | . 1 . 6 Detach 1 | . 1 . . Swap 3 | . 1 . 2 Drop 2 | . 2 . . Fire 34 | 4 2 . 28 Melee . | . . . . Ram . | . . . . Kick . | . . . . Crush . | . . . . Escape Stasis . | . . . . Rewire . | . . . . Trap . | . . . . Miscellaneous . | . . . . Route ------- -11/Scrapyard -10/Materials -10/Mines -9/Materials History --------- Turn | Location | Event 6 | -11/Scrapyard | Discovered new exit (range 16) 69 | -11/Scrapyard | Entered Materials 183 | -10/Materials | Discovered new exit (range 6) 187 | -10/Materials | Identified exit to Mines 188 | -10/Materials | Entered Mines 195 | -10/Mines | Discovered new exit (range 9) 203 | -10/Mines | Identified exit to Materials 204 | -10/Mines | Entered Materials 204 | -9/Materials | Evolved 2 slots: Utility x2 299 | -9/Materials | Lost 3 parts (2n1w) 305 | -9/Materials | Build established: Mutant 519 | -9/Materials | Self-destructed Last Messages --------------- 00480_ K-01 Serf collects debris. 00482_ K-01 Serf destroyed. 00483_ K-01 Serf collects debris. 00484_ Acquired 38 matter. 00486_ Acquired Wheel. 00487_ K-01 Serf collects debris. 00488_ Acquired Wheel. 00490_ K-01 Serf collects debris. 00494_ Acquired 8 matter. 00495_ Acquired 17 matter. 00497_ Acquired Imp. Ion Engine. 00498_ K-01 Serf collects debris. 00499_ W-16 Scout sends out distress signal. 00500_ C-30 ARC bursts open, deploying its payload. 00500_ S-10 Pest unfolds itself. 00501_ K-01 Serf collects debris. 00510_ S-10 Pest knocked back. 00511_ K-01 Serf collects debris. 00513_ S-10 Pest destroyed. 00515_ K-01 Serf collects debris. Map ----- +----------------------------------------------------+ | | | ??????????????????????????????????????????? | | ??????????????????????????????????????????? | | ??????????????????????????????????????????? | | ??????????????????????????????????????????? | | ??????????????????????????????????????????? | | #######?????????????????? ##??????????????? | | ! # ????? #???#????? #??????????????? | | ! # ??? #???# ???"" #??????????????? | | # """ #???# """"" #??????????????? | | # """ #???# """"" #??????????????? | | # #???# """"" #??????????????? | | # """ #???# """ #??????????????? | | # """ #???# #???#??????????? | | # """ #???# #?? #??????????? | | ?# ?????# #? #??????????? | | #+########+#############+### #??????????? | | % % #??????????? | | ! #??????????? | | =%! u #??????????? | | #+########+########## ########??????????? | | # ######### # #??????????? | | # #a *#* ! #??????????? | | # # + %k[ #??????????? | | # # " " # s*k ] #??????????? | | # "T" !* # "R" !# x#@! ] #??????????? | | # """ !* # """ ?# # Y #??????????? | | # * #######?# ####+###??????????? | | ?############???????# #????#????????????? | | ????????????????????# #?????????????????? | | ????????????????????/ #?????????????????? | | ??????????????????? #% #?????????????????? | | ??????????????????? # #?????????????????? | | ??????????????????"?# #?????????????????? | | ??????????????????"?# #?????????????????? | | ????????????????????# #?????????????????? | | ????????????????????# #?????????????????? | | ????????????????????# #?????????????????? | | ????????????????????? ??????????????????? | | ??????????????????????????????????????????? | | ??????????????????????????????????????????? | | ??????????????????????????????????????????? | | ??????????????????????????????????????????? | | ??????????????????????????????????????????? | | ??????????????????????????????????????????? | | ??????????????????????????????????????????? | | ??????????????????????????????????????????? | | ??????????????????????????????????????????? | | ??????????????????????????????????????????? | | ??????????????????????????????????????????? | +----------------------------------------------------+ Best States ------------- Heat Dissipation 28 Energy Generation 10 Energy Capacity 125 Matter Stores 297 Matter Capacity 300 Sight Range 16 Robot Scan Range 10 Terrain Scan Range 16 Terrain Scan Density 10 Evasion (%) 42 Item Schematics ----------------- None Robot Schematics ------------------ None Fabricated ------------ Nothing Alien Tech Used ----------------- None Achievements -------------- None Challenges ------------ None Game ------ Seed SensorBackupAccelerator Manual? 0 Play Time 00:11:45 Cumulative 10.8 hours Start 2019.11.14 @ 17:01:05 End 2019.11.14 @ 17:10:28 Sessions 1 Manual Loads 0 Difficulty Rogue Special Mode None Game No. 12 Rogue 9 Adventurer 3 Explorer 0 Win Type - Total 0 Types 0/0/0/0/0/0/0 Lore% 4 Gallery% 18 Achievement% 15 Wizard Run 0 Options --------- ASCII 0 Keyboard 0 Movement Mouse Keybinds 0 Fullscreen 1 Font 12/Smallcaps Map View 83x54 Tactical HUD 1 Map Filters NONE Filters NONE Steam 1 RUN: e3bbbd61-b680-4766-b1c9-027c963fdad3